bitfinex-derivatives/quotes_BTCF0:USTF0_20241214
["timestamp","ask_amount","ask_price","bid_price","bid_amount"]
[1734219827419,0.62174228,101470.0,101460.0,0.22530901]
[1734219828118,0.71024573,101470.0,101460.0,0.22530901]
[1734219828308,0.62174228,101470.0,101460.0,0.22530901]
[1734219828720,0.76945213,101470.0,101460.0,0.22530901]
[1734219829220,0.7082698,101470.0,101460.0,0.22530901]
[1734219829418,0.7082698,101470.0,101460.0,0.25580901]
[1734219829419,0.76945213,101470.0,101460.0,0.25580901]
[1734219831127,0.73695213,101470.0,101460.0,0.25580901]
[1734219833425,0.58924228,101470.0,101460.0,0.49046556]
[1734219834317,0.73695213,101470.0,101460.0,0.49046556]
[1734219837231,0.73695213,101470.0,101460.0,0.31444255]
[1734219837232,0.47126533,101470.0,101460.0,0.31444255]
[1734219837439,0.62188885,101480.0,101470.0,0.049283]
[1734219837732,0.65037118,101480.0,101470.0,0.46005201]
[1734219837936,0.65037118,101480.0,101470.0,0.28393955]
[1734219839936,0.58918885,101480.0,101470.0,0.28393955]
[1734219840137,0.65037118,101480.0,101470.0,0.28393955]
[1734219840531,0.58918885,101480.0,101470.0,0.28393955]
[1734219841535,0.58918885,101480.0,101470.0,0.46009032]
[1734219842034,0.35648488,101480.0,101470.0,0.53135628]
[1734219842233,0.24029218,101480.0,101470.0,0.47017395]
[1734219842432,0.17910985,101480.0,101470.0,0.56465628]
[1734219842632,0.29727008,101480.0,101470.0,0.56465628]
[1734219842831,0.26637008,101480.0,101470.0,0.56465628]
[1734219843034,0.26637008,101480.0,101470.0,0.38850551]
[1734219844236,0.26637008,101480.0,101470.0,0.68177473]
[1734219844441,0.26637008,101480.0,101470.0,0.38850551]
[1734219845332,0.11866023,101480.0,101470.0,0.38850551]
[1734219845845,0.26637008,101480.0,101470.0,0.56457948]
[1734219847345,0.11866023,101480.0,101470.0,0.56457948]
[1734219847545,0.20724239,101480.0,101470.0,0.56457948]
[1734219856548,0.20724239,101480.0,101470.0,0.74930551]
[1734219859344,0.20724239,101480.0,101470.0,0.68812318]
[1734219859548,0.20724239,101480.0,101470.0,1.04257473]
[1734219859746,0.20724239,101480.0,101470.0,1.29542029]
[1734219863250,0.20724239,101480.0,101470.0,1.29557483]
[1734219866257,0.20724239,101480.0,101470.0,1.06091828]
[1734219867358,0.11866023,101480.0,101470.0,1.06091828]
[1734219871059,0.20730259,101480.0,101470.0,1.06091828]
[1734219871363,0.20730259,101480.0,101470.0,1.41278641]
[1734219871765,0.20730259,101480.0,101470.0,1.4130581]
[1734219872360,0.11866023,101480.0,101470.0,1.4130581]
[1734219874568,0.16793823,101480.0,101470.0,0.95777577]
[1734219874764,0.16793823,101480.0,101470.0,0.830635]
[1734219874765,0.65077018,101480.0,101470.0,0.830635]
[1734219874965,0.68397018,101480.0,101470.0,0.830635]
[1734219875165,0.68397018,101480.0,101470.0,0.460225]
[1734219875166,0.86134521,101480.0,101470.0,0.460225]
[1734219876161,0.86134521,101480.0,101470.0,0.28409399]
[1734219876162,0.68397018,101480.0,101470.0,0.28409399]
[1734219882369,0.68397018,101480.0,101470.0,0.46013648]
[1734219884875,0.86134521,101480.0,101470.0,0.46013648]
[1734219886369,0.86134521,101480.0,101470.0,0.22532549]
[1734219887275,0.68397018,101480.0,101470.0,0.22532549]
[1734219888369,0.32317018,101480.0,101470.0,0.22532549]
[1734219888563,0.049283,101470.0,101460.0,0.46014048]
[1734219888769,0.79632541,101470.0,101460.0,0.22532949]
[1734219890381,0.61895038,101470.0,101460.0,0.049287]
[1734219890875,0.79632541,101470.0,101460.0,0.049287]
[1734219891276,0.61895038,101470.0,101460.0,0.049287]
[1734219892977,0.61895038,101470.0,101460.0,0.22532949]
[1734219893376,0.61895038,101470.0,101460.0,0.049287]
[1734219895879,0.56752085,101470.0,101460.0,0.049287]
[1734219896077,0.62870318,101470.0,101460.0,0.049287]
[1734219902979,0.049287,101460.0,101450.0,0.23481099]
[1734219903291,0.049287,101460.0,101440.0,0.32504771]
[1734219903292,0.049292,101450.0,101440.0,0.6091537]
[1734219903593,0.5597928,101450.0,101440.0,0.49188112]
[1734219905586,0.5597928,101450.0,101440.0,0.50165269]
[1734219908399,0.49861047,101450.0,101440.0,0.56283502]
[1734219910097,0.49861047,101450.0,101440.0,0.50165269]
[1734219910297,0.49861047,101450.0,101440.0,0.56283502]
[1734219913291,0.49861047,101450.0,101440.0,0.38683838]
[1734219914194,0.13781047,101450.0,101440.0,0.38683838]
[1734219914398,0.49861047,101450.0,101440.0,0.93386928]
[1734219914702,0.49861047,101450.0,101440.0,0.9338694]
[1734219915399,0.61662533,101450.0,101440.0,0.9338694]
[1734219915602,0.61662533,101450.0,101440.0,0.87120858]
[1734219917101,0.67780766,101450.0,101440.0,0.87120858]
[1734219918193,0.67780766,101450.0,101440.0,0.81214201]
[1734219918392,0.73697424,101450.0,101440.0,0.81237849]
[1734219918592,0.61895938,101450.0,101440.0,0.44165935]
[1734219918905,0.79633441,101450.0,101440.0,0.44165935]
[1734219919294,0.62906557,101450.0,101440.0,0.44165935]
[1734219919494,0.8064406,101450.0,101440.0,0.44165935]
[1734219920303,0.62906557,101450.0,101440.0,0.44165935]
[1734219920803,0.62906557,101450.0,101440.0,0.49095635]
[1734219924402,0.62906557,101450.0,101440.0,0.41135935]
[1734219924607,0.8064406,101450.0,101440.0,0.17631188]
[1734219924805,0.62906557,101450.0,101440.0,0.17631188]
[1734219926197,0.66196557,101450.0,101440.0,0.17631188]
[1734219926605,0.7231479,101450.0,101440.0,0.17631188]
[1734219926807,0.66196557,101450.0,101440.0,0.17631188]
[1734219928304,0.7231479,101450.0,101440.0,0.17631188]
[1734219928504,0.66196557,101450.0,101440.0,0.17631188]
[1734219930815,0.7231479,101450.0,101440.0,0.17631188]
[1734219931109,0.049297,101440.0,101430.0,0.46065935]
[1734219931307,0.68216499,101440.0,101430.0,0.46065935]
[1734219931507,0.82985004,101440.0,101430.0,0.46065935]
[1734219932916,0.76866771,101440.0,101430.0,0.46065935]
[1734219933111,0.62098266,101440.0,101430.0,0.46065935]
[1734219935016,0.70955737,101440.0,101430.0,0.46065935]
[1734219940219,0.62098266,101440.0,101430.0,0.46065935]
[1734219940617,0.20668088,101440.0,101430.0,0.88258295]
[1734219940812,0.20668088,101450.0,101440.0,0.049297]
[1734219941012,0.08857755,101450.0,101440.0,1.34586567]
[1734219941815,0.08857755,101450.0,101440.0,1.34585023]
[1734219945317,0.08857755,101450.0,101440.0,1.1109356]
[1734219946130,0.08857755,101450.0,101440.0,1.34577589]
[1734219946323,0.08857755,101450.0,101440.0,1.34595387]
[1734219946524,0.08857755,101450.0,101440.0,1.11111358]
[1734219947131,0.08857755,101450.0,101440.0,1.34593785]
[1734219947329,0.67795221,101460.0,101450.0,0.049292]
[1734219947523,0.67795221,101460.0,101450.0,0.46021827]
[1734219949430,0.67795221,101460.0,101450.0,0.22540326]
[1734219953738,0.31715221,101460.0,101450.0,0.22540326]
[1734219953927,0.19904888,101460.0,101450.0,0.46021827]
[1734219954124,0.19904888,101460.0,101450.0,0.82101827]
[1734219954327,0.19904888,101460.0,101450.0,0.5214006]
[1734219954328,0.13786655,101460.0,101450.0,0.5214006]
[1734219954530,0.08857755,101460.0,101450.0,0.5214006]
[1734219955642,0.08857755,101460.0,101450.0,0.46021827]
[1734219955942,0.08857755,101460.0,101450.0,0.5214006]
[1734219956738,0.71872886,101470.0,101460.0,0.049287]
[1734219962542,0.71872886,101470.0,101460.0,0.22539826]
[1734219962743,0.63015131,101470.0,101460.0,0.22539826]
[1734219963445,0.63015131,101470.0,101460.0,0.23530288]
[1734219963840,0.63015131,101470.0,101460.0,0.29648521]
[1734219963841,0.23756519,101470.0,101460.0,0.29648521]
[1734219964033,0.11946186,101470.0,101460.0,0.26780288]
[1734219964242,0.11946186,101470.0,101460.0,0.56380022]
[1734219967239,0.031,101470.0,101460.0,0.74848896]
[1734219967838,0.11946186,101470.0,101460.0,0.92440972]
[1734219968531,0.11946186,101470.0,101460.0,0.74848896]
[1734219968937,0.11946186,101470.0,101460.0,0.77898896]
[1734219969443,0.11946186,101470.0,101460.0,0.35700663]
[1734219969640,0.11946186,101470.0,101460.0,0.77898896]
[1734219969839,0.11946186,101470.0,101460.0,0.41818896]
[1734219970040,0.11946186,101470.0,101460.0,0.95497953]
[1734219970239,0.11946186,101470.0,101460.0,1.32524995]
[1734219971045,0.11946186,101470.0,101460.0,1.07225818]
[1734219971238,0.08846186,101470.0,101460.0,1.38641106]
[1734219971438,0.29698838,101480.0,101470.0,0.049283]
[1734219971439,0.20706519,101480.0,101470.0,0.049283]
[1734219971641,0.20706519,101480.0,101470.0,0.52115797]
[1734219972337,0.26824752,101480.0,101470.0,0.45997564]
[1734219976152,0.20706519,101480.0,101470.0,0.52115797]
[1734219976849,0.08896186,101480.0,101470.0,0.52115797]
[1734219977149,0.15014419,101480.0,101470.0,0.52115797]
[1734219977351,0.08896186,101480.0,101470.0,0.52115797]
[1734219978547,0.15014419,101480.0,101470.0,0.45997564]
[1734219978954,0.70992552,101480.0,101470.0,0.22529413]
[1734219982152,0.62146366,101480.0,101470.0,0.22529413]
[1734219982354,0.70998265,101480.0,101470.0,0.22529413]
[1734219983055,0.62146366,101480.0,101470.0,0.22529413]
[1734219983251,0.76914871,101480.0,101470.0,0.22529413]
[1734219986354,0.76914871,101480.0,101470.0,0.45997564]
[1734219991154,0.65104538,101480.0,101470.0,0.45997564]
[1734219993063,0.65104538,101480.0,101470.0,0.28396451]
[1734219993364,0.65104538,101480.0,101470.0,0.46010601]
[1734219995859,0.82842041,101480.0,101470.0,0.46010601]
[1734219997560,0.65104538,101480.0,101470.0,0.28396451]
[1734219999062,0.82842041,101480.0,101470.0,0.28396451]
[1734219999665,0.65104538,101480.0,101470.0,0.28396451]
[1734219999866,0.82842041,101480.0,101470.0,0.46015286]
[1734220000070,0.65104538,101480.0,101470.0,0.28396451]
[1734220001067,0.82842041,101480.0,101470.0,0.28396451]
[1734220001264,0.65104538,101480.0,101470.0,0.28396451]
[1734220001459,0.65104538,101480.0,101470.0,0.57723373]
[1734220004369,0.61944538,101480.0,101470.0,0.83150337]
[1734220004960,0.55826305,101480.0,101470.0,0.83150337]
[1734220006171,0.55826305,101480.0,101470.0,0.83152576]
[1734220006373,0.61944538,101480.0,101470.0,0.83152576]
[1734220009475,0.61944538,101480.0,101470.0,0.83183415]
[1734220009870,0.79682041,101480.0,101470.0,0.83183415]
[1734220013470,0.68636008,101480.0,101470.0,0.83183415]
[1734220013668,0.14818505,101480.0,101470.0,0.65833497]
[1734220013869,0.26644514,101480.0,101470.0,0.68913497]
[1734220015287,0.26644514,101480.0,101470.0,0.68904062]
[1734220019681,0.26644514,101480.0,101470.0,0.6886688]
[1734220019881,0.26644514,101480.0,101470.0,1.0817688]
[1734220021184,0.11876009,101480.0,101470.0,1.0817688]
[1734220024090,0.20740696,101480.0,101470.0,1.0817688]
[1734220025987,0.11876009,101480.0,101470.0,1.0817688]
[1734220027496,0.11876009,101480.0,101470.0,1.08119138]
[1734220029393,0.20739796,101480.0,101470.0,1.08119138]
[1734220031387,0.20739796,101480.0,101470.0,1.43305951]
[1734220031895,0.08913787,101480.0,101470.0,1.43305951]
[1734220032285,0.20739796,101480.0,101470.0,1.43305951]
[1734220033290,0.08913787,101480.0,101470.0,1.43305951]
[1734220034487,0.20739796,101480.0,101470.0,1.43305951]
[1734220034897,0.20739796,101480.0,101470.0,1.4523942]
[1734220035892,0.20739796,101480.0,101470.0,1.30877718]
[1734220036094,0.26858029,101480.0,101470.0,0.95690905]
[1734220036294,0.29918029,101480.0,101470.0,0.59610905]
[1734220036490,0.29918029,101480.0,101470.0,0.83076577]
[1734220036795,0.21054242,101480.0,101470.0,0.83076577]
[1734220037193,0.35822747,101480.0,101470.0,0.83076577]
[1734220037394,0.21054242,101480.0,101470.0,0.83076577]
[1734220038190,0.35822747,101480.0,101470.0,0.83076577]
[1734220038388,0.8294878,101480.0,101470.0,0.28395621]
[1734220038693,0.65004538,101480.0,101470.0,0.46000813]
[1734220041090,0.71122771,101480.0,101470.0,0.41072513]
[1734220041393,0.74091769,101480.0,101470.0,0.17605192]
[1734220041598,0.77211769,101480.0,101470.0,0.17605192]
[1734220042192,0.77211769,101480.0,101460.0,0.55169875]
[1734220042392,0.76888532,101470.0,101460.0,0.50241375]
[1734220044201,0.62120755,101470.0,101460.0,0.50241375]
[1734220048898,0.70973927,101470.0,101460.0,0.50241375]
[1734220051190,0.70973927,101470.0,101460.0,0.17605192]
[1734220051396,0.049287,101460.0,101450.0,0.46001613]
[1734220051599,0.73911505,101460.0,101450.0,0.46001613]
[1734220052309,0.73911505,101460.0,101450.0,0.22534292]
[1734220053099,0.77181505,101460.0,101450.0,0.22534292]
[1734220057104,0.77181505,101460.0,101450.0,0.049291]
[1734220058215,0.78193449,101460.0,101450.0,0.049291]
[1734220064916,0.69341332,101460.0,101450.0,0.049291]
[1734220065112,0.78188632,101460.0,101450.0,0.049291]
[1734220065313,0.69341332,101460.0,101450.0,0.049291]
[1734220066315,0.69341332,101460.0,101450.0,0.22534292]
[1734220067315,0.84109109,101460.0,101450.0,0.22534292]
[1734220074219,0.84109109,101460.0,101450.0,0.46001613]
[1734220075528,0.77990876,101460.0,101450.0,0.46001613]
[1734220076220,0.66176654,101460.0,101450.0,0.46001613]
[1734220080326,0.66176654,101460.0,101450.0,0.28396421]
[1734220081928,0.30096654,101460.0,101450.0,0.28396421]
[1734220082236,0.62906654,101460.0,101450.0,0.28396421]
[1734220084035,0.26826654,101460.0,101450.0,0.28396421]
[1734220084231,0.62906654,101460.0,101450.0,0.28396421]
[1734220084433,0.26826654,101460.0,101450.0,0.28396421]
[1734220084632,0.62906654,101460.0,101450.0,0.28396421]
[1734220085630,0.80644157,101460.0,101450.0,0.28396421]
[1734220086242,0.44564157,101460.0,101450.0,0.57723343]
[1734220086841,0.80644157,101460.0,101450.0,0.57723343]
[1734220087843,0.80644157,101460.0,101450.0,0.28396421]
[1734220088233,0.44564157,101460.0,101450.0,0.57723343]
[1734220088430,0.80644157,101460.0,101450.0,0.57723343]
[1734220089238,0.8676239,101460.0,101450.0,0.57723343]
[1734220090045,0.8676239,101460.0,101450.0,0.28396421]
[1734220090245,0.8676239,101460.0,101450.0,0.57723343]
[1734220093651,0.5068239,101460.0,101450.0,0.57723343]
[1734220093952,0.8676239,101460.0,101450.0,0.57723343]
[1734220095353,0.8676239,101460.0,101450.0,0.83107488]
[1734220095549,0.8676239,101460.0,101450.0,0.57723343]
[1734220096341,0.71994613,101460.0,101450.0,0.46022519]
[1734220097248,0.71994613,101460.0,101450.0,0.28396421]
[1734220097449,0.71994613,101460.0,101450.0,0.4602288]
[1734220108259,0.71994613,101460.0,101450.0,0.22555559]
[1734220109154,0.59758147,101460.0,101450.0,0.22555559]
[1734220109656,0.71994613,101460.0,101450.0,0.22555559]
[1734220110563,0.71994613,101460.0,101450.0,0.4602288]
[1734220110753,0.71994613,101460.0,101450.0,0.22555559]
[1734220110954,0.71994613,101460.0,101450.0,0.4602288]
[1734220111663,0.6587638,101460.0,101450.0,0.22555559]
[1734220112263,1.0195638,101460.0,101450.0,0.22555559]
[1734220112456,1.08074613,101460.0,101450.0,0.22555559]
[1734220115469,1.08074613,101460.0,101450.0,0.4602288]
[1734220116063,1.08074613,101460.0,101450.0,0.22555559]
[1734220116466,1.08074613,101460.0,101450.0,0.4602288]
[1734220117565,1.08074613,101460.0,101450.0,0.22555559]
[1734220118864,1.08074613,101460.0,101450.0,0.4602288]
[1734220119172,1.08074613,101460.0,101450.0,0.22555559]
[1734220120566,1.08074613,101460.0,101450.0,0.4602288]
[1734220120567,1.0195638,101460.0,101450.0,0.4602288]
[1734220120766,1.0195638,101460.0,101450.0,0.22555559]
[1734220122670,1.0195638,101460.0,101450.0,0.4602288]
[1734220122671,0.6587638,101460.0,101450.0,0.4602288]
[1734220127372,0.71994613,101460.0,101450.0,0.4602288]
[1734220132367,0.71994613,101460.0,101450.0,0.4109378]
[1734220136179,0.59758147,101460.0,101450.0,0.4109378]
[1734220136381,0.71994613,101460.0,101450.0,0.4109378]
[1734220142875,0.71994613,101460.0,101450.0,0.4602298]
[1734220143583,0.35914613,101460.0,101450.0,0.4602298]
[1734220143786,0.71994613,101460.0,101450.0,0.4602298]
[1734220144178,0.35914613,101460.0,101450.0,0.4602298]
[1734220144480,0.71994613,101460.0,101450.0,0.4602298]
[1734220144782,0.35914613,101460.0,101450.0,0.4602298]
[1734220144982,0.71994613,101460.0,101450.0,0.4602298]
[1734220145789,0.35914613,101460.0,101450.0,0.4602298]
[1734220146178,0.71994613,101460.0,101450.0,0.4602298]
[1734220150592,0.6587638,101460.0,101450.0,0.4602298]
[1734220152983,0.2979638,101460.0,101450.0,0.4602298]
[1734220153183,0.6587638,101460.0,101450.0,0.4602298]
[1734220154186,0.2979638,101460.0,101450.0,0.4602298]
[1734220154484,0.6587638,101460.0,101450.0,0.4602298]
[1734220155188,0.71994613,101460.0,101450.0,0.4602298]
[1734220156092,0.6587638,101460.0,101450.0,0.4602298]
[1734220159292,0.2979638,101460.0,101450.0,0.4602298]
[1734220159492,0.6587638,101460.0,101450.0,0.4602298]
[1734220160392,0.2979638,101460.0,101450.0,0.4602298]
[1734220160593,0.6587638,101460.0,101450.0,0.4602298]
[1734220161987,0.2979638,101460.0,101450.0,0.4602298]
[1734220162284,0.6587638,101460.0,101450.0,0.4602298]
[1734220162690,0.2979638,101460.0,101450.0,0.4602298]
[1734220162893,0.6587638,101460.0,101450.0,0.4602298]
[1734220163087,0.2979638,101460.0,101450.0,0.4602298]
[1734220163282,0.6587638,101460.0,101450.0,0.4602298]
[1734220164291,0.6587638,101460.0,101450.0,0.4109378]
[1734220164499,0.71994613,101460.0,101450.0,0.4109378]
[1734220164699,0.5425711,101460.0,101450.0,0.17626459]
[1734220165197,0.60375343,101460.0,101450.0,0.17626459]
[1734220165390,0.60375343,101460.0,101440.0,0.57723643]
[1734220165391,0.049292,101450.0,101440.0,0.4602318]
[1734220165699,0.78942147,101450.0,101440.0,0.4602318]
[1734220165886,0.7414942,101450.0,101440.0,0.4602318]
[1734220166085,0.7414942,101450.0,101440.0,0.4109378]
[1734220166086,0.88932169,101450.0,101440.0,0.4109378]
[1734220166287,0.82813936,101450.0,101440.0,0.4109378]
[1734220168193,0.65070182,101450.0,101440.0,0.4109378]
[1734220168800,0.65070182,101450.0,101440.0,0.4602348]
[1734220171300,0.65070182,101450.0,101440.0,0.22556159]
[1734220174598,0.82813936,101450.0,101440.0,0.22556159]
[1734220183614,0.88932169,101450.0,101440.0,0.17626459]
[1734220183811,0.92112169,101450.0,101440.0,0.17626459]
[1734220185803,0.56032169,101450.0,101440.0,0.17626459]
[1734220186005,0.92112169,101450.0,101440.0,0.17626459]
[1734220189111,0.7732942,101450.0,101440.0,0.17626459]
[1734220193014,0.049297,101440.0,101430.0,0.4439378]
[1734220193215,0.70982895,101440.0,101430.0,0.20926459]
[1734220197227,0.70982895,101440.0,101430.0,0.033]
[1734220198224,0.85754262,101440.0,101430.0,0.033]
[1734220199020,0.73517796,101440.0,101430.0,0.033]
[1734220199223,0.85754262,101440.0,101430.0,0.033]
[1734220204334,0.86737838,101440.0,101430.0,0.033]
[1734220210641,0.86737838,101440.0,101420.0,0.5214438]
[1734220210828,0.58942593,101430.0,101420.0,0.5214438]
[1734220211135,0.79832193,101430.0,101420.0,0.4109378]
[1734220211330,0.74438033,101430.0,101420.0,0.17626459]
[1734220211525,0.92174762,101430.0,101420.0,0.17626459]
[1734220211727,0.92174762,101430.0,101410.0,0.31708221]
[1734220211728,0.049307,101420.0,101410.0,0.4933468]
[1734220212036,0.73922905,101420.0,101410.0,0.4933468]
[1734220212335,0.73922905,101420.0,101410.0,0.49326637]
[1734220218435,0.65061874,101420.0,101410.0,0.49326637]
[1734220218841,0.66071329,101420.0,101410.0,0.49326637]
[1734220220243,0.80842696,101420.0,101410.0,0.49326637]
[1734220222342,0.80842696,101420.0,101410.0,0.44395737]
[1734220222544,0.69027988,101420.0,101410.0,0.44395737]
[1734220223239,0.69027988,101420.0,101410.0,0.20928416]
[1734220223840,0.86764717,101420.0,101410.0,0.20928416]
[1734220224444,0.69027988,101420.0,101410.0,0.20928416]
[1734220224835,0.69027988,101420.0,101410.0,0.17618416]
[1734220236952,1.05107988,101420.0,101410.0,0.17618416]
[1734220237451,1.05107988,101420.0,101410.0,0.22549616]
[1734220238457,0.92871522,101420.0,101410.0,0.22549616]
[1734220238752,0.98989755,101420.0,101410.0,0.46016937]
[1734220238952,1.10808096,101420.0,101410.0,0.46016937]
[1734220239361,0.98989755,101420.0,101410.0,0.46016937]
[1734220240651,1.05107988,101420.0,101410.0,0.46016937]
[1734220246459,1.22844717,101420.0,101410.0,0.46016937]
[1734220248881,1.22844717,101420.0,101410.0,0.41085737]
[1734220249670,1.0807335,101420.0,101410.0,0.41085737]
[1734220251062,0.3591335,101420.0,101410.0,0.41085737]
[1734220251263,1.0807335,101420.0,101410.0,0.41085737]
[1734220254665,1.0807335,101420.0,101410.0,0.17618416]
[1734220272091,1.0807335,101420.0,101410.0,0.22549616]
[1734220272285,1.01955117,101420.0,101410.0,0.22549616]
[1734220272484,1.16740184,101420.0,101410.0,0.46016937]
[1734220275090,1.22858417,101420.0,101410.0,0.46016937]
[1734220275884,1.22858417,101420.0,101410.0,0.41085737]
[1734220278189,1.0807335,101420.0,101410.0,0.41085737]
[1734220278490,1.0807335,101420.0,101410.0,0.17618416]
[1734220286698,0.90336621,101420.0,101410.0,0.17618416]
[1734220287293,0.049312,101410.0,101400.0,0.52127237]
[1734220287595,0.79663794,101410.0,101400.0,0.52127237]
[1734220288691,0.79663794,101410.0,101400.0,0.49047237]
[1734220288889,0.82843794,101410.0,101400.0,0.49047237]
[1734220301205,0.65097779,101410.0,101400.0,0.49047237]
[1734220306407,0.82843794,101410.0,101400.0,0.31428821]
[1734220307509,0.65097779,101410.0,101400.0,0.31428821]
[1734220307711,0.65097779,101410.0,101400.0,0.85833495]
[1734220308010,0.65097779,101410.0,101400.0,0.85113495]
[1734220309207,0.82843794,101410.0,101400.0,0.85113495]
[1734220312002,0.82843794,101410.0,101400.0,0.60035743]
[1734220312207,0.82843794,101410.0,101400.0,0.85119569]
[1734220314107,0.58979546,101410.0,101400.0,0.85119569]
[1734220314302,0.54048346,101410.0,101400.0,0.85119569]
[1734220314705,0.65881905,101410.0,101400.0,0.67770481]
[1734220314903,0.62701905,101410.0,101400.0,0.61652248]
[1734220316315,0.47913559,101410.0,101400.0,0.61652248]
[1734220317906,0.47913559,101410.0,101400.0,0.67770481]
[1734220319909,0.56783991,101410.0,101400.0,0.67770481]
[1734220320115,0.56783991,101410.0,101400.0,1.02957294]
[1734220323516,0.56783991,101410.0,101400.0,0.67770481]
[1734220324313,0.56783991,101410.0,101400.0,0.61652248]
[1734220324613,0.62902224,101410.0,101400.0,0.61652248]
[1734220325315,0.67833424,101410.0,101400.0,0.61652248]
[1734220325516,0.71123424,101410.0,101400.0,0.85150731]
[1734220328219,0.71123424,101410.0,101400.0,0.85094937]
[1734220329122,0.74323424,101410.0,101400.0,0.85094937]
[1734220330315,0.65452992,101410.0,101400.0,0.85094937]
[1734220330813,0.74321868,101410.0,101400.0,0.85094937]
[1734220331112,0.65452992,101410.0,101400.0,0.85094937]
[1734220332012,0.74322061,101410.0,101400.0,0.85094937]
[1734220332218,0.65452992,101410.0,101400.0,0.85094937]
[1734220332714,0.65452992,101410.0,101400.0,0.61596454]
[1734220335211,0.29372992,101410.0,101400.0,0.61596454]
[1734220335426,0.65452992,101410.0,101400.0,0.61596454]
[1734220336719,0.29372992,101410.0,101400.0,0.61596454]
[1734220336930,0.65452992,101410.0,101400.0,0.61580148]
[1734220337118,0.80241338,101410.0,101400.0,0.59270148]
[1734220338016,0.80241338,101410.0,101400.0,0.82791845]
[1734220338216,0.68407779,101410.0,101400.0,0.82791845]
[1734220354540,0.68407779,101410.0,101400.0,0.82758325]
[1734220363531,0.68407779,101410.0,101400.0,0.85768325]
[1734220364439,0.65207779,101410.0,101400.0,0.85768325]
[1734220365637,0.82953794,101410.0,101400.0,0.85768325]
[1734220366234,0.82953794,101410.0,101400.0,0.62246628]
[1734220366533,0.65207779,101410.0,101400.0,0.62246628]
[1734220370738,0.77041707,101410.0,101400.0,0.62246628]
[1734220371443,0.65207779,101410.0,101400.0,0.62246628]
[1734220371645,0.77041516,101410.0,101400.0,0.62246628]
[1734220376841,0.77041516,101410.0,101400.0,0.62186413]
[1734220381351,0.77040704,101410.0,101400.0,0.62186413]
[1734220384157,0.40960704,101410.0,101400.0,0.62186413]
[1734220384452,0.77040704,101410.0,101400.0,0.62186413]
[1734220384755,0.65207779,101410.0,101400.0,0.62186413]
[1734220385447,0.77040721,101410.0,101400.0,0.62186413]
[1734220386151,0.65207779,101410.0,101400.0,0.62186413]
[1734220388961,0.65207779,101410.0,101400.0,0.37268422]
[1734220389167,0.65207779,101410.0,101400.0,0.62238339]
[1734220398060,0.65207779,101410.0,101400.0,0.37268422]
[1734220398270,0.65207779,101410.0,101400.0,0.622403]
[1734220405470,0.59089546,101410.0,101400.0,0.622403]
[1734220405670,0.65207779,101410.0,101400.0,0.622403]
[1734220406276,1.07406012,101410.0,101400.0,0.5288303]
[1734220406461,1.10363681,101410.0,101400.0,0.41224653]
[1734220406665,1.13483681,101410.0,101400.0,0.41224653]
[1734220406864,1.13483681,101410.0,101400.0,0.17668545]
[1734220411969,0.049317,101400.0,101390.0,0.41224653]
[1734220412172,0.79850646,101400.0,101390.0,0.41224653]
[1734220415273,0.79848249,101400.0,101390.0,0.41224653]
[1734220416580,0.43768249,101400.0,101390.0,0.41224653]
[1734220416782,0.79848249,101400.0,101390.0,0.41224653]
[1734220418683,0.43768249,101400.0,101390.0,0.41224653]
[1734220418882,0.79848249,101400.0,101390.0,0.41224653]
[1734220420483,0.65069093,101400.0,101390.0,0.41224653]
[1734220421186,0.66039807,101400.0,101390.0,0.41224653]
[1734220422882,0.29959807,101400.0,101390.0,0.41224653]
[1734220423186,0.66039807,101400.0,101390.0,0.41224653]
[1734220423787,0.59921574,101400.0,101390.0,0.46156753]
[1734220423985,0.52832627,101400.0,101390.0,0.46156753]
[1734220424288,0.5895086,101400.0,101390.0,0.52356753]
[1734220424489,0.2287086,101400.0,101390.0,0.34688208]
[1734220425183,0.31732647,101400.0,101390.0,0.34688208]
[1734220425591,0.5895086,101400.0,101390.0,0.34688208]
[1734220426093,0.31733209,101400.0,101390.0,0.34688208]
[1734220427385,0.2287086,101400.0,101390.0,0.34688208]
[1734220427582,0.31734107,101400.0,101390.0,0.34688208]
[1734220428489,0.2287086,101400.0,101390.0,0.34688208]
[1734220429495,0.31735441,101400.0,101390.0,0.88858371]
[1734220430289,0.26803741,101400.0,101390.0,0.88858371]
[1734220430593,0.26803741,101400.0,101390.0,0.65302263]
[1734220432993,0.26803741,101400.0,101390.0,1.01382263]
[1734220433195,0.26803741,101400.0,101390.0,1.36569076]
[1734220436188,0.26803741,101400.0,101390.0,1.00489076]
[1734220436593,0.26803741,101400.0,101390.0,1.36569076]
[1734220437997,0.26803741,101400.0,101390.0,1.00489076]
[1734220438295,0.26803741,101400.0,101390.0,1.36569076]
[1734220438490,0.26803741,101400.0,101390.0,1.00517513]
[1734220438685,0.26803741,101400.0,101390.0,1.36597513]
[1734220440401,0.26803741,101400.0,101390.0,0.653307]
[1734220441004,0.62883741,101400.0,101390.0,0.653307]
[1734220442097,0.67815441,101400.0,101390.0,0.88878814]
[1734220442697,0.73933674,101400.0,101390.0,0.85758814]
[1734220443994,0.73933674,101400.0,101390.0,0.82678814]
[1734220444305,0.79848249,101400.0,101390.0,0.57807136]
[1734220444805,0.79848249,101400.0,101390.0,0.28480214]
[1734220445600,0.68027322,101400.0,101390.0,0.46148628]
[1734220445811,0.85773337,101400.0,101390.0,0.46148628]
[1734220445999,0.85773337,101400.0,101390.0,0.41216528]
[1734220447308,0.85773337,101400.0,101390.0,0.17668414]
[1734220447804,0.77112414,101400.0,101390.0,0.17668414]
[1734220448207,0.049321,101390.0,101380.0,0.4615776]
[1734220448507,0.86360049,101390.0,101380.0,0.4615776]
[1734220449702,0.74537168,101390.0,101380.0,0.4615776]
[1734220450408,0.86356087,101390.0,101380.0,0.4615776]
[1734220450610,0.80237854,101390.0,101380.0,0.4615776]
[1734220450808,0.80237854,101390.0,101380.0,0.22609646]
[1734220451014,0.68418935,101390.0,101380.0,0.22609646]
[1734220451510,0.80235754,101390.0,101380.0,0.22609646]
[1734220452610,0.86353987,101390.0,101380.0,0.17677246]
[1734220453005,0.89383987,101390.0,101380.0,0.17677246]
[1734220456216,0.89383987,101390.0,101380.0,8.832e-05]
[1734220456516,0.77567168,101390.0,101380.0,8.832e-05]
[1734220456703,0.96304208,101390.0,101380.0,8.832e-05]
[1734220457403,0.78558193,101390.0,101380.0,8.832e-05]
[1734220461217,0.90360621,101390.0,101380.0,8.832e-05]
[1734220463420,0.78558193,101390.0,101380.0,8.832e-05]
[1734220463919,1.14638193,101390.0,101380.0,8.832e-05]
[1734220464213,1.2644042,101390.0,101380.0,8.832e-05]
[1734220464513,1.14638193,101390.0,101380.0,8.832e-05]
[1734220468223,1.07948311,101390.0,101380.0,0.04941432]
[1734220468420,1.0225996,101390.0,101380.0,0.11121432]
[1734220468619,1.14068106,101390.0,101380.0,0.11121432]
[1734220470021,1.07949873,101390.0,101380.0,0.11121432]
[1734220470210,1.14068106,101390.0,101380.0,0.11121432]
[1734220471423,1.0225996,101390.0,101380.0,0.11121432]
[1734220471925,1.0225996,101390.0,101380.0,0.28789846]
[1734220475320,1.0225996,101390.0,101380.0,0.5233796]